bitfinex/quotes_BTCUSD_20220304
["timestamp","ask_amount","ask_price","bid_price","bid_amount"]
[1646431773675,0.65665568,39354.0,39353.0,0.00067813]
[1646431773875,0.55,39353.0,39341.0,1.03506585]
[1646431774126,0.06332942,39353.0,39342.0,0.01364168]
[1646431774325,0.11447383,39352.0,39350.0,0.00067175]
[1646431774723,0.11447383,39352.0,39350.0,0.01547337]
[1646431775122,0.11447383,39352.0,39350.0,0.06480162]
[1646431775323,0.01447383,39352.0,39350.0,0.06480162]
[1646431776022,0.15,39351.0,39350.0,0.06480162]
[1646431776422,0.01447383,39352.0,39350.0,0.06480162]
[1646431776628,0.01447383,39352.0,39350.0,0.05]
[1646431776826,0.01447383,39352.0,39349.0,0.063596]
[1646431777029,0.01845045,39349.0,39348.0,0.01780385]
[1646431777225,0.01845045,39349.0,39348.0,0.01280385]
[1646431778275,0.01345045,39349.0,39348.0,0.01280385]
[1646431780879,0.003,39353.0,39348.0,1.41280385]
[1646431781079,0.12046821,39361.0,39356.0,0.01041737]
[1646431781286,0.34309921,39362.0,39358.0,0.08091666]
[1646431781477,0.13585227,39362.0,39358.0,0.08091666]
[1646431781738,0.13585227,39362.0,39358.0,0.13091666]
[1646431782532,0.13604878,39362.0,39358.0,0.13091666]
[1646431782735,0.20720791,39359.0,39358.0,0.13091666]
[1646431782934,0.25920675,39361.0,39358.0,0.13091666]
[1646431782935,0.20720791,39361.0,39358.0,0.13091666]
[1646431783734,0.20740442,39361.0,39358.0,0.13091666]
[1646431784134,0.20712628,39361.0,39358.0,0.13091666]
[1646431784735,0.25920675,39361.0,39358.0,0.13091666]
[1646431784935,0.25940326,39361.0,39358.0,0.06734266]
[1646431785135,0.51586243,39360.0,39358.0,0.06734266]
[1646431785377,0.15,39359.0,39358.0,0.06734266]
[1646431785579,0.51586243,39360.0,39358.0,0.06734266]
[1646431786180,0.5160393,39360.0,39358.0,0.06734266]
[1646431786579,0.40459046,39360.0,39358.0,0.06734266]
[1646431786781,0.25892548,39359.0,39358.0,0.06734266]
[1646431786979,0.04653437,39355.0,39353.0,0.12716]
[1646431787183,0.01052859,39354.0,39353.0,0.12716]
[1646431787381,0.01052859,39354.0,39350.0,0.063594]
[1646431787981,0.01052859,39354.0,39339.0,0.02535]
[1646431788181,0.01052859,39354.0,39342.0,0.740759]
[1646431788382,0.01052859,39354.0,39342.0,0.715759]
[1646431788581,0.01052859,39354.0,39350.0,0.058594]
[1646431788781,0.25892548,39352.0,39350.0,0.108594]
[1646431789429,0.25929223,39351.0,39350.0,0.108594]
[1646431789632,0.71770378,39352.0,39345.0,0.063599]
[1646431789834,0.3110481,39351.0,39350.0,0.05]
[1646431790226,0.3110481,39351.0,39347.0,0.0002116]
[1646431790427,0.25926783,39349.0,39347.0,0.0002116]
[1646431790629,0.25926783,39349.0,39342.0,0.215759]
[1646431790928,0.25926783,39348.0,39345.0,0.00058471]
[1646431791330,0.25926783,39348.0,39345.0,0.06418271]
[1646431791530,0.19077382,39348.0,39345.0,0.05418271]
[1646431791731,0.3110481,39348.0,39345.0,0.05418271]
[1646431791932,0.3110481,39348.0,39345.0,0.053598]
[1646431792132,0.3110481,39349.0,39345.0,0.053598]
[1646431792337,0.3110481,39349.0,39348.0,0.32228439]
[1646431792733,0.3110481,39349.0,39348.0,0.37228439]
[1646431792975,0.36888945,39352.0,39348.0,0.05]
[1646431792976,0.3110481,39350.0,39348.0,0.05]
[1646431793171,0.3110481,39349.0,39347.0,0.177174]
[1646431794171,0.3110481,39349.0,39348.0,0.24693156]
[1646431795575,0.3110481,39349.0,39347.0,0.177174]
[1646431795774,0.2986301,39349.0,39347.0,0.177174]
[1646431796072,0.36288945,39351.0,39347.0,0.177174]
[1646431796475,0.36288945,39351.0,39348.0,0.31207192]
[1646431796733,0.36888945,39353.0,39348.0,0.31207192]
[1646431797334,0.36288945,39352.0,39350.0,0.01586476]
[1646431797537,0.36288945,39352.0,39350.0,0.06586476]
[1646431798033,0.36288945,39352.0,39350.0,0.01586476]
[1646431799633,0.37649839,39352.0,39350.0,0.01586476]
[1646431800477,0.37649839,39352.0,39350.0,0.06586476]
[1646431800677,0.01360894,39352.0,39350.0,0.06586476]
[1646431800877,0.01360894,39352.0,39350.0,0.06084216]
[1646431800878,0.02515043,39352.0,39350.0,0.06084216]
[1646431801178,0.02515043,39352.0,39350.0,0.36043506]
[1646431801377,0.02515043,39352.0,39350.0,0.37059606]
[1646431801581,0.02515043,39352.0,39350.0,0.36043506]
[1646431801780,0.02515043,39352.0,39350.0,0.06084216]
[1646431803079,0.01157365,39352.0,39350.0,0.06084216]
[1646431803678,0.3112111,39351.0,39350.0,0.06084216]
[1646431803882,0.3112111,39351.0,39345.0,0.47280181]
[1646431804125,0.3112111,39351.0,39345.0,0.45280181]
[1646431804126,0.2074702,39346.0,39345.0,0.45280181]
[1646431805125,0.2074702,39346.0,39345.0,0.50280181]
[1646431805325,0.2074702,39347.0,39345.0,0.51296281]
[1646431805528,0.2074702,39347.0,39345.0,0.50280181]
[1646431805925,0.05372234,39347.0,39345.0,0.50280181]
[1646431806126,0.25933775,39348.0,39345.0,0.50280181]
[1646431806340,0.25933775,39348.0,39347.0,0.05]
[1646431807028,0.3112111,39349.0,39347.0,0.05]
[1646431807728,0.31466275,39350.0,39347.0,0.05]
[1646431807729,0.3112111,39348.0,39347.0,0.05]
[1646431807981,0.3112111,39348.0,39345.0,0.45280181]
[1646431807982,0.76020528,39348.0,39345.0,0.45280181]
[1646431808185,0.17573203,39337.0,39336.0,1.4952]
[1646431808379,0.17573203,39337.0,39336.0,0.4081]
[1646431808578,0.15567046,39337.0,39336.0,0.4081]
[1646431809380,0.86490817,39337.0,39336.0,0.4081]
[1646431809580,0.56485177,39337.0,39336.0,0.4081]
[1646431809779,3.26422889,39337.0,39336.0,0.4081]
[1646431810182,3.77844758,39337.0,39336.0,0.4081]
[1646431810384,3.77844758,39337.0,39335.0,0.010165]
[1646431810385,3.80379758,39337.0,39335.0,0.010165]
[1646431810582,4.16673038,39337.0,39335.0,0.010165]
[1646431810788,3.80379758,39337.0,39329.0,0.002]
[1646431811081,0.25916468,39333.0,39329.0,0.002]
[1646431811281,0.2284572,39333.0,39329.0,0.002]
[1646431811497,0.2284572,39333.0,39332.0,0.00269863]
[1646431812135,0.40665568,39334.0,39332.0,0.00269863]
[1646431812331,0.31099761,39333.0,39332.0,0.0021]
[1646431812734,0.47028468,39334.0,39332.0,0.0021]
[1646431812933,0.32028468,39334.0,39332.0,0.001496]
[1646431813134,0.40665568,39334.0,39332.0,0.001496]
[1646431813340,0.3,39333.0,39332.0,0.001496]
[1646431813533,0.63128329,39334.0,39332.0,0.011663]
[1646431813735,0.3,39333.0,39332.0,0.011663]
[1646431813935,0.3506,39333.0,39332.0,0.001496]
[1646431814133,0.45508615,39333.0,39332.0,0.001496]
[1646431814434,0.51801895,39333.0,39332.0,0.001496]
[1646431814636,0.51771605,39333.0,39332.0,0.001496]
[1646431814837,0.5132299,39333.0,39332.0,0.000892]
[1646431815495,0.924,39333.0,39332.0,0.000892]
[1646431815687,0.5132299,39333.0,39332.0,0.000892]
[1646431815890,0.4626299,39333.0,39332.0,0.000892]
[1646431816088,0.41061693,39333.0,39332.0,0.000892]
[1646431816889,0.1,39333.0,39332.0,0.000892]
[1646431817189,0.41059527,39333.0,39332.0,0.000289]
[1646431817596,0.36119527,39333.0,39332.0,0.000289]
[1646431817787,0.0506,39333.0,39332.0,0.000289]
[1646431818189,0.0506,39333.0,39330.0,0.00112727]
[1646431818588,0.14628187,39331.0,39330.0,0.00112727]
[1646431819228,0.14628187,39331.0,39330.0,0.00052227]
[1646431819434,0.20700737,39331.0,39330.0,0.00052227]
[1646431819631,0.20700737,39334.0,39330.0,0.00052227]
[1646431819857,0.20700737,39336.0,39330.0,0.05052227]
[1646431820030,0.20700737,39335.0,39330.0,0.05052227]
[1646431820229,0.20700737,39335.0,39330.0,0.00052227]
[1646431820830,0.20700737,39335.0,39331.0,0.127223]
[1646431821035,0.20700737,39335.0,39331.0,0.177223]
[1646431821529,0.20700737,39336.0,39331.0,0.177223]
[1646431822333,0.20700737,39336.0,39331.0,0.05]
[1646431822532,0.20700737,39334.0,39331.0,0.05]
[1646431822731,0.20700737,39333.0,39330.0,0.00112094]
[1646431822976,0.20700737,39334.0,39330.0,0.00112094]
[1646431823177,0.25665568,39331.0,39330.0,0.00052227]
[1646431824376,0.91987051,39331.0,39330.0,0.00052227]
[1646431824776,0.66114183,39331.0,39330.0,0.00052227]
[1646431825577,0.91964222,39331.0,39330.0,0.00052227]
[1646431825976,0.61964222,39331.0,39330.0,0.00052227]
[1646431826184,0.61515607,39331.0,39330.0,0.00052227]
[1646431826377,0.35665568,39331.0,39330.0,0.00052227]
[1646431827032,1.43005568,39331.0,39330.0,0.00052227]
[1646431827232,0.65665568,39331.0,39330.0,0.00052227]
[1646431827632,0.35665568,39331.0,39330.0,0.00052227]
[1646431828032,0.35665568,39331.0,39327.0,0.001]
[1646431828233,0.53916157,39318.0,39296.0,1.48901721]
[1646431828433,0.53916157,39318.0,39316.0,0.01676531]
[1646431828634,0.43780562,39318.0,39316.0,0.01676531]
[1646431829234,0.43780562,39318.0,39317.0,0.26596475]
[1646431829433,0.43780562,39318.0,39317.0,0.27613375]
[1646431830482,0.43780562,39318.0,39317.0,0.35021864]
[1646431830706,0.43780562,39318.0,39317.0,0.32613375]
[1646431831083,0.43780562,39318.0,39317.0,0.35148375]
[1646431831284,0.42529772,39318.0,39317.0,0.35148375]
[1646431831493,0.42529772,39318.0,39317.0,0.65148375]
[1646431831684,0.42529772,39318.0,39317.0,0.70496646]
[1646431832686,0.42529772,39318.0,39317.0,0.40496646]
[1646431832885,0.42529772,39318.0,39317.0,0.70496646]
[1646431833088,0.42529772,39318.0,39317.0,0.35148375]
[1646431833486,0.42529772,39318.0,39317.0,0.34648375]
[1646431833688,0.42529772,39318.0,39317.0,0.64648375]
[1646431834134,0.42529772,39318.0,39317.0,0.0506]
[1646431834334,0.42529772,39318.0,39316.0,0.08040231]
[1646431834732,0.42529772,39318.0,39316.0,0.09057031]
[1646431838790,0.42529772,39318.0,39316.0,0.08996531]
[1646431838987,0.04355672,39318.0,39317.0,0.00210215]
[1646431841928,0.04355672,39318.0,39316.0,0.12189946]
[1646431842730,0.04355672,39318.0,39316.0,0.11689946]
[1646431843230,0.04355672,39318.0,39316.0,0.12706746]
[1646431843432,0.04355672,39318.0,39316.0,0.11689946]
[1646431844432,0.01007321,39317.0,39316.0,0.11689946]
[1646431845486,0.04355672,39318.0,39316.0,0.11689946]
[1646431845888,0.01282995,39317.0,39316.0,0.11689946]
[1646431847087,0.01282995,39317.0,39316.0,0.12706746]
[1646431847487,0.01282995,39317.0,39316.0,0.11689946]
[1646431850432,0.01282995,39317.0,39316.0,0.07840231]
[1646431851028,0.01282995,39317.0,39316.0,0.08857131]
[1646431851429,0.01282995,39317.0,39316.0,0.07840231]
[1646431851632,0.04355672,39318.0,39316.0,0.07840231]
[1646431851633,0.02290205,39318.0,39316.0,0.07840231]
[1646431851931,0.01389423,39317.0,39316.0,0.07840231]
[1646431853784,0.63642537,39318.0,39316.0,0.07840231]
[1646431853982,0.03133153,39314.0,39313.0,0.00057048]
[1646431854183,0.23856742,39314.0,39313.0,0.00057048]
[1646431854382,0.46397646,39314.0,39312.0,0.06365]
[1646431854585,0.2844555,39313.0,39312.0,0.06365]
[1646431854985,0.4598055,39313.0,39312.0,0.06365]
[1646431855182,1.07040077,39313.0,39310.0,0.02235119]
[1646431855386,0.31092028,39311.0,39310.0,0.02235119]
[1646431855583,0.48627028,39311.0,39310.0,0.01878066]
[1646431855782,0.17535,39311.0,39310.0,0.01878066]
[1646431855982,0.15,39311.0,39310.0,0.01878066]
[1646431856830,0.14643265,39311.0,39310.0,0.01817666]
[1646431857229,0.14643265,39311.0,39310.0,0.01750268]
[1646431857230,0.05737913,39311.0,39310.0,0.01750268]
[1646431857430,0.08272913,39311.0,39310.0,0.01750268]
[1646431857634,0.31640137,39311.0,39310.0,0.01750268]
[1646431858233,0.31640137,39311.0,39310.0,0.02767468]
[1646431858436,0.25902224,39313.0,39310.0,0.02767468]
[1646431858638,0.20723544,39311.0,39310.0,0.01750268]
[1646431858834,0.19032191,39311.0,39310.0,0.01750268]
[1646431859234,0.19032191,39311.0,39310.0,0.01250268]
[1646431859434,0.19032191,39311.0,39310.0,0.00750268]
[1646431859634,0.51576281,39314.0,39310.0,0.00750268]
[1646431860681,0.25674057,39314.0,39310.0,0.00750268]
[1646431861081,0.03133153,39314.0,39312.0,0.3295322]
[1646431861281,0.03133153,39314.0,39310.0,0.00750268]
[1646431862282,0.03133153,39314.0,39313.0,0.23158259]
[1646431862683,0.03133153,39314.0,39313.0,0.24495578]
[1646431864133,0.03133153,39314.0,39309.0,0.064652]
[1646431864334,0.29035377,39314.0,39312.0,0.32964369]
[1646431864733,0.05668153,39314.0,39310.0,0.00044501]
[1646431865239,0.05668153,39314.0,39309.0,0.064652]
[1646431865636,0.03133153,39314.0,39309.0,0.064652]
[1646431865838,0.03133153,39314.0,39312.0,0.24068037]
[1646431866035,0.25674057,39314.0,39312.0,0.23568037]
[1646431866235,0.03133153,39314.0,39312.0,0.23568037]
[1646431867045,0.3141197,39314.0,39309.0,0.064652]
[1646431867236,0.51576281,39314.0,39309.0,0.078609]
[1646431867440,0.57314194,39314.0,39309.0,0.078609]
[1646431867638,0.3141197,39314.0,39309.0,0.078609]
[1646431867886,0.57314194,39314.0,39309.0,0.078609]
[1646431868090,0.25902224,39313.0,39309.0,0.078609]
[1646431868686,0.27239543,39313.0,39309.0,0.078609]
[1646431868892,0.20718725,39311.0,39309.0,0.078609]
[1646431870091,0.20718725,39310.0,39309.0,0.014957]
[1646431870892,0.5021785,39310.0,39309.0,0.014957]
[1646431871937,0.49900002,39310.0,39309.0,0.014957]
[1646431874040,0.06849625,39306.0,39305.0,0.132388]
[1646431874241,0.06849625,39306.0,39305.0,0.005072]
[1646431874438,0.00018682,39306.0,39305.0,0.005072]
[1646431876090,0.21552211,39309.0,39305.0,0.005072]
[1646431876490,0.3,39308.0,39305.0,0.068731]
[1646431876699,0.24219959,39307.0,39305.0,0.005072]
[1646431876896,0.50122183,39307.0,39305.0,0.005072]
[1646431877091,0.25902224,39306.0,39305.0,0.005072]
[1646431877290,0.28437224,39306.0,39305.0,0.005072]
[1646431877490,0.02535,39306.0,39305.0,0.005072]
[1646431878590,0.28437224,39306.0,39305.0,0.005072]
[1646431879236,0.28437224,39306.0,39302.0,0.0005089]
[1646431879237,0.7734,39303.0,39302.0,0.0005089]
[1646431879436,1.56471976,39303.0,39302.0,0.0005089]
[1646431879635,1.56471976,39303.0,39295.0,0.12835]
[1646431879636,0.850342,39303.0,39295.0,0.12835]
[1646431879832,0.12535,39302.0,39295.0,0.12835]
[1646431880034,0.12535,39302.0,39299.0,0.00050893]
[1646431880239,0.42535,39302.0,39299.0,0.00050893]
[1646431880534,1.51283981,39302.0,39299.0,0.00050893]
[1646431880937,1.51283981,39302.0,39295.0,0.001]
[1646431881134,0.00050574,39300.0,39298.0,0.00050895]
[1646431881334,0.99181852,39299.0,39298.0,0.00050895]
[1646431881933,1.26471976,39299.0,39298.0,0.00050895]
[1646431882134,1.26471976,39299.0,39295.0,0.011176]
[1646431882335,1.47160817,39299.0,39295.0,0.06168499]
[1646431882535,1.26471976,39299.0,39295.0,0.00050899]
[1646431882735,0.21552211,39299.0,39295.0,0.00050899]
[1646431883190,0.00050574,39300.0,39295.0,0.00050899]
[1646431883390,0.00050574,39300.0,39292.0,0.002]
[1646431883595,0.00050574,39300.0,39293.0,0.00215945]
[1646431883789,0.00050574,39300.0,39294.0,0.30899527]
[1646431883989,0.01226548,39298.0,39294.0,0.30899527]
[1646431884190,0.00050574,39300.0,39294.0,0.30899527]
[1646431884191,0.01263185,39296.0,39295.0,0.177343]
[1646431884389,0.00050574,39300.0,39295.0,0.14304342]
[1646431884593,0.00050574,39300.0,39296.0,0.05]
[1646431884790,0.00050574,39300.0,39297.0,0.063671]
[1646431885191,0.21552211,39299.0,39297.0,0.063671]
[1646431885991,0.00050574,39300.0,39297.0,0.063671]
[1646431886831,0.21552211,39299.0,39297.0,0.063671]
[1646431887529,0.001,39304.0,39298.0,1.4]
[1646431887733,0.20688841,39310.0,39303.0,0.0664751]
[1646431887930,0.20688841,39312.0,39304.0,0.01475107]
[1646431888129,0.43578371,39313.0,39304.0,0.01475107]
[1646431888430,0.2288953,39313.0,39304.0,0.01475107]
[1646431888634,0.2288953,39313.0,39306.0,0.02535]
[1646431888635,0.01357092,39313.0,39306.0,0.02535]
[1646431888833,0.01357092,39313.0,39308.0,0.02535]
[1646431889029,0.02290205,39318.0,39311.0,0.02535]
[1646431889229,0.02290205,39318.0,39316.0,0.01778045]
[1646431889630,0.02290205,39318.0,39317.0,0.01783873]
[1646431890486,0.02290205,39318.0,39317.0,0.07314346]
[1646431890681,0.02290205,39318.0,39317.0,0.47135046]
[1646431890888,0.20688841,39323.0,39319.0,0.02535]
[1646431891087,0.00121284,39326.0,39323.0,0.02535]
[1646431891282,0.01018373,39333.0,39326.0,1.4]
[1646431891283,0.25868525,39331.0,39326.0,1.4]
[1646431891490,0.25868525,39332.0,39328.0,0.01708136]
[1646431892081,0.27290124,39339.0,39328.0,0.01708136]
[1646431892082,0.21552211,39339.0,39331.0,1.4]
[1646431892284,0.66763906,39345.0,39334.0,1.4]
[1646431892285,0.43163484,39345.0,39334.0,1.4]
[1646431892588,0.18799041,39344.0,39337.0,0.02535]
[1646431892783,0.27536185,39345.0,39338.0,0.0178977]
[1646431893384,0.27536185,39345.0,39340.0,0.02535]
[1646431893988,0.27536185,39345.0,39334.0,0.87488006]
[1646431894249,0.05737913,39344.0,39335.0,0.0506]
[1646431894448,0.01534453,39343.0,39341.0,0.01454096]
[1646431894655,0.05737913,39344.0,39341.0,0.01454096]
[1646431894946,0.27536185,39345.0,39341.0,0.01454096]
[1646431894947,0.27536185,39345.0,39341.0,0.00954096]
[1646431895146,0.27536185,39345.0,39342.0,0.23955578]
[1646431895348,0.05237913,39344.0,39342.0,0.127188]
[1646431895748,0.27555997,39345.0,39342.0,0.127188]
[1646431896553,0.27536185,39345.0,39342.0,0.127188]
[1646431896750,0.04737913,39344.0,39342.0,0.127188]
[1646431897551,0.27555997,39345.0,39342.0,0.127188]
[1646431897752,0.27480533,39345.0,39342.0,0.127188]
[1646431897979,0.27500345,39345.0,39342.0,0.127188]
[1646431898879,0.04737913,39344.0,39342.0,0.127188]
[1646431899093,0.27480533,39345.0,39342.0,0.127188]
[1646431899279,0.27500345,39345.0,39342.0,0.127188]
[1646431899480,0.06003786,39345.0,39343.0,0.05]
[1646431900080,0.05983974,39345.0,39343.0,0.05]
[1646431900486,0.05983974,39345.0,39343.0,0.045]
[1646431901482,0.05983974,39345.0,39343.0,0.172188]
[1646431901762,0.05983974,39345.0,39344.0,0.05]
[1646431902361,0.05983974,39345.0,39342.0,0.063592]
[1646431902564,0.04737913,39343.0,39339.0,0.5]
[1646431902759,0.04737913,39340.0,39339.0,0.5]
[1646431902961,0.34737913,39340.0,39339.0,0.5]
[1646431903165,0.34737913,39340.0,39338.0,0.002]
[1646431903361,0.95981485,39339.0,39338.0,0.002]
[1646431903560,0.00038748,39332.0,39324.0,0.305324]
[1646431903860,0.21496559,39331.0,39326.0,0.127246]
[1646431904662,0.01475568,39329.0,39327.0,0.3]
[1646431904860,0.01187014,39328.0,39327.0,0.3]
[1646431905058,0.00038748,39332.0,39327.0,0.3]
[1646431905261,0.00018039,39330.0,39327.0,0.3]
[1646431905488,0.18200664,39334.0,39332.0,0.29559279]
[1646431905688,0.18200664,39334.0,39332.0,0.40919979]
[1646431905887,0.04737913,39334.0,39332.0,0.40919979]
[1646431906088,0.22938577,39334.0,39332.0,0.40919979]
[1646431906691,0.22938577,39334.0,39332.0,0.34559279]
[1646431907091,0.18200664,39334.0,39332.0,0.34559279]
[1646431907290,0.22938577,39334.0,39332.0,0.34559279]
[1646431907492,0.18200664,39334.0,39332.0,0.34559279]
[1646431907791,0.18200664,39334.0,39332.0,0.05]
[1646431907993,0.18200664,39334.0,39331.0,0.177213]
[1646431908192,0.04737913,39333.0,39331.0,0.177213]
[1646431908396,0.04737913,39333.0,39332.0,0.010166]
[1646431908693,0.18200664,39334.0,39331.0,0.177213]
[1646431908893,0.18219809,39334.0,39333.0,0.27745035]
[1646431909736,0.18200664,39334.0,39333.0,0.27745035]
[1646431914087,0.18131574,39334.0,39333.0,0.27745035]
[1646431914489,0.00019798,39335.0,39333.0,0.27745035]
[1646431914690,0.18331574,39338.0,39333.0,0.27745035]
[1646431914888,0.00019798,39335.0,39333.0,0.27745035]
[1646431915087,0.14997474,39338.0,39333.0,0.27745035]
[1646431915287,0.01330211,39336.0,39334.0,0.9]
[1646431916942,0.01330211,39336.0,39333.0,0.52223935]
[1646431917743,0.01330211,39336.0,39333.0,0.51823935]
[1646431918744,0.01330211,39336.0,39334.0,0.3]
[1646431918961,0.01330211,39336.0,39333.0,0.51823935]
[1646431919744,0.01330211,39336.0,39333.0,0.240789]
[1646431920246,0.01330211,39336.0,39333.0,0.010164]
[1646431920489,0.01330211,39336.0,39331.0,0.063606]
[1646431920490,0.04737913,39334.0,39331.0,0.063606]
[1646431920889,0.26645768,39333.0,39331.0,0.063606]
[1646431921092,0.68842239,39332.0,39329.0,0.127233]
[1646431921291,0.68842239,39332.0,39328.0,0.41077665]
[1646431921292,0.19737913,39330.0,39328.0,0.41077665]
[1646431921489,2.1734,39328.0,39317.0,9.081e-05]
[1646431921691,0.04737913,39318.0,39317.0,9.081e-05]
[1646431921888,0.04737913,39318.0,39316.0,0.00056756]
[1646431921889,0.38842239,39318.0,39316.0,0.01346696]
[1646431922091,0.86494954,39318.0,39316.0,0.01346696]
[1646431922289,0.86494954,39318.0,39316.0,0.01403452]
[1646431923103,0.86494954,39318.0,39316.0,0.01346696]
[1646431923490,0.89029954,39318.0,39316.0,0.01346696]
[1646431923690,1.19029954,39318.0,39316.0,0.01346696]
[1646431923894,0.32535,39317.0,39315.0,0.015]
[1646431924142,0.84612913,39316.0,39315.0,0.015]
[1646431924343,1.44672913,39316.0,39315.0,0.015]
[1646431925158,1.3011967,39316.0,39315.0,0.015]
[1646431925341,1.3511967,39316.0,39315.0,0.015]
[1646431925542,1.3011967,39316.0,39315.0,0.0001]
[1646431925743,1.3511967,39316.0,39315.0,0.0001]
[1646431926049,0.02535,39309.0,39304.0,0.00134064]
[1646431926244,0.02535,39309.0,39305.0,0.01564665]
[1646431926245,0.14332474,39307.0,39305.0,0.01564665]
[1646431926442,0.04737913,39306.0,39305.0,0.01416358]
[1646431926744,0.01335241,39306.0,39305.0,0.01397404]
[1646431926942,0.01335241,39306.0,39304.0,0.001]
[1646431928585,0.04637862,39305.0,39304.0,0.001]
[1646431929588,0.01335241,39306.0,39304.0,0.001]
[1646431929892,0.01335241,39306.0,39304.0,0.064658]
[1646431929893,0.05973103,39306.0,39304.0,0.064658]
[1646431930497,0.05473103,39306.0,39304.0,0.064658]
[1646431935795,0.00835241,39306.0,39304.0,0.064658]
[1646431936592,0.13867474,39307.0,39306.0,0.30797752]
[1646431936593,0.11343893,39307.0,39306.0,0.30797752]
[1646431936798,0.11343893,39308.0,39306.0,0.30797752]
[1646431936993,0.11343893,39308.0,39306.0,0.45023268]
[1646431938094,0.11343893,39308.0,39306.0,0.14225516]
[1646431939341,0.11343893,39308.0,39306.0,0.13725516]
[1646431939740,0.04637862,39307.0,39306.0,0.14742616]
[1646431940139,0.04637862,39307.0,39306.0,0.13725516]
[1646431940540,0.04510463,39307.0,39306.0,0.13725516]
[1646431941141,0.04510463,39307.0,39306.0,0.01495116]
[1646431942993,0.11343893,39308.0,39306.0,0.01495116]
[1646431943196,0.04510463,39307.0,39306.0,0.01495116]
[1646431944194,0.04510463,39307.0,39306.0,0.00995116]
[1646431944394,0.04510463,39307.0,39306.0,0.00855366]
[1646431944595,0.04510463,39307.0,39306.0,0.00518111]
[1646431945597,0.04510463,39307.0,39306.0,0.00484994]
[1646431945997,0.01150149,39307.0,39306.0,0.0040465]
[1646431946839,0.03685149,39307.0,39306.0,0.0040465]
[1646431947440,0.03685149,39307.0,39306.0,0.0142195]
[1646431947740,0.03685149,39307.0,39306.0,0.0040465]
[1646431948848,1.11025149,39307.0,39304.0,0.001]
[1646431949042,0.01150149,39305.0,39304.0,0.001]
[1646431949442,0.33685149,39305.0,39304.0,0.001]
[1646431949643,0.34131945,39305.0,39304.0,0.001]
[1646431949843,0.34131945,39305.0,39304.0,0.00057739]
[1646431949844,0.44131945,39305.0,39304.0,0.00057739]
[1646431950042,0.49191945,39305.0,39304.0,0.00057739]
[1646431950243,0.48745149,39305.0,39304.0,0.00057739]
[1646431950691,0.0506,39305.0,39304.0,0.00057739]
[1646431950888,0.32535,39307.0,39304.0,0.00057739]
[1646431951088,0.32322514,39305.0,39304.0,0.00057739]
[1646431951287,0.36007663,39305.0,39304.0,0.00057739]
[1646431951891,0.35589865,39305.0,39304.0,0.00057739]
[1646431952289,0.65589865,39305.0,39304.0,0.00057739]
[1646431952489,0.35589865,39305.0,39304.0,0.00057739]
[1646431952888,0.65589865,39305.0,39304.0,0.00057739]
[1646431953091,1.42929865,39305.0,39304.0,0.00057739]
[1646431953489,1.47989865,39305.0,39304.0,0.00057739]
[1646431953690,1.57989865,39305.0,39304.0,0.00057739]
[1646431954153,1.58436661,39305.0,39304.0,0.00057739]
[1646431954341,1.73436661,39305.0,39304.0,0.00057739]
[1646431954543,1.58436661,39305.0,39304.0,0.00057739]
[1646431954945,1.73436661,39305.0,39304.0,0.00057739]
[1646431956043,1.8836112,39305.0,39304.0,0.00057739]
[1646431956643,2.14197903,39305.0,39304.0,0.00057739]
[1646431956846,1.8836112,39305.0,39304.0,0.00057739]
[1646431958104,2.14215183,39305.0,39304.0,0.00057739]
[1646431958505,1.8836112,39305.0,39304.0,0.00015639]
[1646431958903,1.73436661,39305.0,39304.0,0.00015639]
[1646431959205,1.99301649,39305.0,39304.0,0.00015639]
[1646431959509,1.06961649,39305.0,39304.0,0.00015639]
[1646431959704,1.06961649,39305.0,39287.0,0.16876127]
[1646431959705,0.0030444,39300.0,39287.0,0.16876127]
[1646431959906,0.0030444,39300.0,39289.0,0.002]
[1646431960104,0.0030444,39300.0,39295.0,0.05]
[1646431960303,0.01454589,39300.0,39295.0,0.05]
[1646431960703,0.01454589,39300.0,39296.0,0.00013312]
[1646431961506,0.01454589,39300.0,39295.0,0.05]
[1646431961746,0.01454589,39300.0,39296.0,0.00041081]
[1646431962151,0.30650745,39301.0,39300.0,0.27844229]
[1646431963248,0.35710745,39301.0,39300.0,0.27844229]
[1646431963751,0.66700888,39301.0,39300.0,0.27844229]
[1646431963954,0.69235888,39301.0,39300.0,0.27844229]
[1646431964653,0.66700888,39301.0,39300.0,0.27844229]
[1646431965050,0.55356995,39301.0,39300.0,0.27844229]
[1646431965250,0.32348692,39301.0,39300.0,0.27844229]
[1646431965691,0.1304184,39301.0,39300.0,0.27844229]
[1646431965891,0.1304184,39301.0,39300.0,0.11989454]
[1646431965892,0.38940637,39301.0,39300.0,0.11989454]
[1646431966094,0.25898797,39301.0,39300.0,0.11989454]
[1646431966295,0.25898797,39302.0,39300.0,0.11989454]
[1646431966693,0.25898797,39303.0,39300.0,0.11989454]
[1646431966893,0.25898797,39304.0,39300.0,0.11989454]
[1646431967198,0.39886556,39305.0,39300.0,0.24722054]
[1646431967199,0.25898797,39303.0,39300.0,0.24722054]
[1646431967393,0.25898797,39304.0,39300.0,0.24722054]
[1646431967594,0.25898797,39303.0,39300.0,0.24722054]
[1646431967898,0.25898797,39304.0,39300.0,0.24722054]
[1646431968293,0.25898797,39303.0,39300.0,0.24722054]
[1646431968694,0.25898797,39304.0,39300.0,0.24722054]
[1646431969339,0.65985353,39305.0,39300.0,0.24722054]
[1646431969745,0.25898797,39304.0,39300.0,0.24722054]
[1646431969944,0.65785353,39305.0,39300.0,0.24722054]
[1646431971143,0.39886556,39305.0,39300.0,0.25739354]
[1646431971342,0.01598423,39304.0,39300.0,0.24722054]
[1646431971542,0.01171288,39303.0,39300.0,0.24722054]
[1646431971743,0.39886556,39305.0,39300.0,0.24722054]
[1646431971744,0.01187301,39302.0,39300.0,0.24722054]
[1646431972043,0.39886556,39305.0,39300.0,0.24722054]
[1646431972443,0.39886556,39305.0,39301.0,0.24279587]
[1646431972644,0.0798184,39305.0,39301.0,0.30645787]
[1646431972891,0.0798184,39305.0,39301.0,0.30585087]
[1646431974799,0.04619224,39305.0,39301.0,0.30585087]
[1646431974995,0.04619224,39305.0,39301.0,0.31602387]
[1646431975193,0.31290143,39308.0,39301.0,0.31602387]
[1646431975194,0.30990143,39307.0,39301.0,0.31602387]
[1646431975493,0.35609367,39307.0,39301.0,0.30585087]
[1646431975994,0.35609367,39307.0,39301.0,0.063055]
[1646431976669,0.54916219,39307.0,39301.0,0.063055]
[1646431977667,0.04619224,39307.0,39301.0,0.063055]
[1646431977873,0.23926076,39307.0,39301.0,0.063055]
[1646431978067,0.54916219,39307.0,39301.0,0.063055]
[1646431978466,0.35609367,39307.0,39301.0,0.063055]